[Event "4NCL 2021-22"]
[Site "England"]
[Date "2022.02.13"]
[Round "4.79"]
[White "Smith, Lynda"]
[Black "Kelmendi, Bajrush"]
[Result "0-1"]
[ECO "A03"]
[WhiteElo "1826"]
[BlackElo "2086"]
[Annotator "NA"]
[PlyCount "94"]
[EventDate "2021.11.27"]
[EventType "team-tourn"]
[EventCountry "ENG"]
[SourceTitle "playchess.com"]
[Source "ChessBase"]
[SourceQuality "1"]
[TimeControl "40/6000+30:3000+30"]

1. f4 g6 2. Nf3 Bg7 3. g3 c5 4. Bg2 Nc6 5. O-O d5 6. d3 Nf6 7. c3 O-O 8. Qe1 b6 9. Nbd2 Ba6 10. h3 Qc7 11. Kh1 Rad8 12. Qf2 e5 13. fxe5 Nxe5 14. Nxe5 Qxe5 15. Nf3 Qd6 16. Bf4 {[%emt 0:00:59]} Qe7 {[%emt 0:00:26]} 17. Rae1 {[%emt 0:05:58]} Nh5 {[%emt 0:00:31]} 18. Bg5 {[%emt 0:02:25]} f6 {[%emt 0:00:26]} 19. Bc1 {[%emt 0:02:07]} Qd6 {[%emt 0:00:10]} 20. Kh2 {[%emt 0:01:17]} Rde8 {[%emt 0:00:34]} 21. Nh4 {[%emt 0:06:16]} f5 {[%emt 0:04:15]} 22. Bf3 {[%emt 0:04:25]} Nxg3 {[%emt 0:03:20]} 23. Qxg3 {[%emt 0:01:16]} Be5 {[%emt 0:00:09]} 24. Bxd5+ {[%emt 0:00:06]} Qxd5 {[%emt 0:03:59]} 25. Bf4 {[%emt 0:02:44]} Bxf4 {[%emt 0:00:26]} 26. Qxf4 {[%emt 0:01:35]} Qe5 {[%emt 0:01:09]} 27. Ng2 {[%emt 0:08:37]} g5 {[%emt 0:03:05]} 28. Qxe5 {[%emt 0:01:21]} Rxe5 {[%emt 0:00:10]} 29. h4 {[%emt 0:09:40]} h6 {[%emt 0:00:36]} 30. Kg3 {[%emt 0:03:16]} Kg7 {[%emt 0:00:32]} 31. c4 {[%emt 0:02:03]} Bb7 {[%emt 0:01:45]} 32. Kf2 {[%emt 0:02:03]} f4 {[%emt 0:01:06]} 33. Kg1 {[%emt 0:02:02]} Rfe8 {[%emt 0:01:40]} 34. Rf2 {[%emt 0:07:32]} f3 {[%emt 0:00:35]} 35. e4 {[%emt 0:00:25]} fxg2 {[%emt 0:00:19]} 36. Kxg2 {[%emt 0:00:14]} gxh4 {[%emt 0:01:04]} 37. Ref1 {[%emt 0:00:45]} R8e7 {[%emt 0:00:26]} 38. Kh3 {[%emt 0:00:33]} Rg5 {[%emt 0:00:40]} 39. Kxh4 {[%emt 0:00:53]} Bc8 {[%emt 0:00:35]} 40. Rf4 {[%emt 0:01:13]} Be6 {[%emt 0:00:21]} 41. a3 {[%emt 0:01:39]} Rf7 {[%emt 0:00:06]} 42. Rxf7+ {[%emt 0:00:53]} Bxf7 {[%emt 0:00:14]} 43. b4 {[%emt 0:00:18]} Be6 {[%emt 0:00:12]} 44. bxc5 {[%emt 0:01:34]} bxc5 {[%emt 0:00:12]} 45. Rf4 {[%emt 0:01:20]} a6 {[%emt 0:00:13]} 46. Rf2 {[%emt 0:01:50]} Rg4+ {[%emt 0:00:24]} 47. Kh5 {[%emt 0:00:29]} Rg3 {[%emt 0:00:31]} 0-1

[Event "4NCL 2021-22"]
[Site "England"]
[Date "2022.02.13"]
[Round "4.80"]
[White "Macleod, Andrew"]
[Black "Moreby, Kurt"]
[Result "1/2-1/2"]
[ECO "D31"]
[WhiteElo "1640"]
[BlackElo "1673"]
[Annotator "NA"]
[PlyCount "82"]
[EventDate "2021.11.27"]
[EventType "team-tourn"]
[EventCountry "ENG"]
[SourceTitle "playchess.com"]
[Source "ChessBase"]
[SourceQuality "1"]
[TimeControl "40/6000+30:3000+30"]

1. d4 d5 2. c4 e6 3. Nc3 c6 4. Nf3 dxc4 5. e4 b5 6. a4 Bb4 7. Bd2 a5 8. axb5 Bxc3 9. bxc3 cxb5 10. g3 Bb7 11. Qe2 h6 12. e5 Ne7 13. Bg2 Nd5 14. Rc1 Qc7 15. O-O O-O {[%emt 0:00:26]} 16. Rc2 {[%emt 0:03:23]} Nc6 {[%emt 0:08:18]} 17. Rfc1 {[%emt 0:03:46]} Ba6 {[%emt 0:03:23]} 18. Qe4 {[%emt 0:01:30]} Qe7 {[%emt 0:07:15]} 19. Qg4 {[%emt 0:02:04]} Kh7 {[%emt 0:08:36]} 20. Nh4 {[%emt 0:04:54]} g6 {[%emt 0:05:42]} 21. Be4 {[%emt 0:03:26]} Rg8 {[%emt 0:01:13]} 22. Qh3 {[%emt 0:00:40]} h5 {[%emt 0:05:56]} 23. Nf5 {[%emt 0:07:25]} exf5 {[%emt 0:04:33]} 24. Bxd5 {[%emt 0:00:06]} Qd7 {[%emt 0:04:42]} 25. Bf3 {[%emt 0:00:45]} Rg7 {[%emt 0:02:11]} 26. Bg5 {[%emt 0:03:08]} Kg8 {[%emt 0:01:42]} 27. Bf6 {[%emt 0:00:41]} Rh7 {[%emt 0:00:32]} 28. Qg2 {[%emt 0:02:20]} Rc8 {[%emt 0:02:38]} 29. Re1 {[%emt 0:01:02]} Nxd4 {[%emt 0:05:12]} 30. cxd4 {[%emt 0:01:02]} Qxd4 {[%emt 0:00:29]} 31. Bb7 {[%emt 0:00:49]} Bxb7 {[%emt 0:01:55]} 32. Qxb7 {[%emt 0:00:11]} Qc5 {[%emt 0:02:03]} 33. Rd1 {[%emt 0:01:56]} b4 {[%emt 0:08:46]} 34. Rd5 {[%emt 0:00:48]} Qf8 {[%emt 0:00:34]} 35. Rxa5 {[%emt 0:01:17]} b3 {[%emt 0:04:06]} 36. Rd2 {[%emt 0:01:27]} c3 {[%emt 0:01:01]} 37. Rd1 {[%emt 0:00:28]} c2 {[%emt 0:04:16]} 38. Rc1 {[%emt 0:05:01]} Rb8 {[%emt 0:00:58]} 39. Qc6 {[%emt 0:04:54]} b2 {[%emt 0:01:56]} 40. Qxc2 {[%emt 0:00:05]} bxc1=Q+ {[%emt 0:00:15]} 41. Qxc1 {[%emt 0:00:03]} Qb4 {[%emt 0:11:02]} 1/2-1/2

[Event "4NCL 2021-22"]
[Site "England"]
[Date "2022.03.26"]
[Round "5.4"]
[White "Suarez Real, Alberto"]
[Black "Jaracz, Pawel"]
[Result "1-0"]
[ECO "B54"]
[WhiteElo "2445"]
[BlackElo "2459"]
[Annotator "ChessBase"]
[PlyCount "57"]
[EventDate "2021.11.27"]
[EventType "team-tourn"]
[EventCountry "ENG"]
[SourceTitle "playchess.com"]
[Source "ChessBase"]
[SourceQuality "1"]
[TimeControl "40/6000+30:3000+30"]

1. e4 {[%emt 0:00:03]} c5 {[%emt 0:00:16]} 2. Nf3 {[%emt 0:00:16]} Nc6 {[%emt 0:00:25]} 3. d4 {[%emt 0:00:35]} cxd4 {[%emt 0:00:05]} 4. Nxd4 {[%emt 0:00:05]} e6 {[%emt 0:00:18]} 5. Nc3 {[%emt 0:00:47]} d6 {[%emt 0:02:21]} 6. g4 {[%emt 0:11:50]} Nge7 7. Nb3 {[%emt 0:04:32]} a6 8. Be3 {[%emt 0:07:59]} b5 {[%emt 0:06:26]} 9. Qe2 {[%emt 0:08:02]} Na5 {[%emt 0:18:49]} 10. O-O-O {[%emt 0:02:20]} Nxb3+ {[%emt 0:09:08]} 11. cxb3 {[%emt 0:03:00]} Bb7 {[%emt 0:08:31]} 12. Bg2 {[%emt 0:06:35]} Ng6 {[%emt 0:04:41]} 13. Rhf1 {[%emt 0:11:01]} e5 {[%emt 0:11:37]} 14. f4 {[%emt 0:20:37]} exf4 {[%emt 0:00:00]} 15. e5 {[%emt 0:02:27]} Bxg2 {[%emt 0:00:00]} 16. Qxg2 {[%emt 0:00:50]} Rc8 {[%emt 0:08:47]} 17. Bxf4 {[%emt 0:11:24]} Nxf4 {[%emt 0:06:06]} 18. Rxf4 {[%emt 0:00:04]} Qg5 {[%emt 0:00:29]} 19. Qd2 {[%emt 0:02:40]} d5 {[%emt 0:00:49]} 20. e6 {[%emt 0:07:10]} b4 {[%emt 0:07:12]} 21. exf7+ {[%emt 0:02:06]} Kd7 {[%emt 0:00:04]} 22. h4 {[%emt 0:05:30]} bxc3 {[%emt 0:07:22]} 23. Qd4 {[%emt 0:00:01]} cxb2+ {[%emt 0:02:11]} 24. Kxb2 {[%emt 0:00:16]} Qg6 {[%emt 0:01:01]} 25. Rf5 {[%emt 0:00:55]} Bd6 {[%emt 0:01:57]} 26. h5 {[%emt 0:01:43]} Qe6 {[%emt 0:01:11]} 27. Rxd5 {[%emt 0:00:18]} Rc6 {[%emt 0:00:17]} 28. Qxg7 {[%emt 0:00:35]} Qe2+ {[%emt 0:03:37]} 29. R1d2 {[%emt 0:00:18]} 1-0

[Event "4NCL 2021-22"]
[Site "England"]
[Date "2022.03.26"]
[Round "5.7"]
[White "Kolbus, Dietmar"]
[Black "Golding, Alex"]
[Result "1/2-1/2"]
[ECO "D38"]
[WhiteElo "2305"]
[BlackElo "2331"]
[Annotator "ChessBase"]
[PlyCount "61"]
[EventDate "2021.11.27"]
[EventType "team-tourn"]
[EventCountry "ENG"]
[SourceTitle "playchess.com"]
[Source "ChessBase"]
[SourceQuality "1"]
[TimeControl "40/6000+30:3000+30"]

1. d4 {[%emt 0:00:03]} Nf6 {[%emt 0:00:05]} 2. c4 {[%emt 0:00:05]} e6 {[%emt 0:00:02]} 3. Nf3 {[%emt 0:00:15]} d5 {[%emt 0:00:04]} 4. Nc3 {[%emt 0:03:21]} Bb4 {[%emt 0:00:05]} 5. cxd5 {[%emt 0:02:00]} exd5 {[%emt 0:04:24]} 6. Qa4+ {[%emt 0:04:12]} Nc6 {[%emt 0:00:05]} 7. Bg5 {[%emt 0:00:29]} h6 {[%emt 0:01:13]} 8. Bxf6 {[%emt 0:01:51]} Qxf6 {[%emt 0:00:07]} 9. e3 {[%emt 0:12:12]} O-O {[%emt 0:00:06]} 10. a3 {[%emt 0:01:33]} Bxc3+ {[%emt 0:00:04]} 11. bxc3 {[%emt 0:00:08]} Bg4 {[%emt 0:02:51]} 12. Be2 {[%emt 0:00:19]} Ne7 {[%emt 0:14:20]} 13. O-O {[%emt 0:00:21]} c6 {[%emt 0:06:22]} 14. c4 {[%emt 0:01:56]} a6 {[%emt 0:00:30]} 15. Qb3 {[%emt 0:13:26]} b5 {[%emt 0:01:07]} 16. cxd5 {[%emt 0:00:13]} cxd5 {[%emt 0:02:14]} 17. a4 {[%emt 0:01:17]} bxa4 {[%emt 0:12:21]} 18. Rxa4 {[%emt 0:03:09]} Rfb8 {[%emt 0:01:10]} 19. Qa2 {[%emt 0:02:34]} Rb6 {[%emt 0:03:53]} 20. h3 {[%emt 0:07:20]} Bd7 {[%emt 0:03:16]} 21. Ra3 {[%emt 0:01:18]} Bb5 {[%emt 0:00:57]} 22. Ne5 {[%emt 0:06:37]} Bxe2 {[%emt 0:04:54]} 23. Qxe2 {[%emt 0:09:05]} Qd6 {[%emt 0:00:09]} 24. Ra5 {[%emt 0:02:56]} Nc6 {[%emt 0:00:51]} 25. Nxc6 {[%emt 0:04:50]} Qxc6 {[%emt 0:01:22]} 26. Rfa1 {[%emt 0:00:17]} Qe6 {[%emt 0:02:31]} 27. Qa2 {[%emt 0:02:16]} Rd6 {[%emt 0:00:14]} 28. Qe2 {[%emt 0:06:56]} Rc6 {[%emt 0:05:10]} 29. Qa2 {[%emt 0:00:57]} Rd6 {[%emt 0:00:09]} 30. Qe2 {[%emt 0:02:57]} Rc6 {[%emt 0:00:31]} 31. Qa2 {[%emt 0:00:12]} 1/2-1/2

[Event "4NCL 2021-22"]
[Site "England"]
[Date "2022.03.26"]
[Round "5.8"]
[White "Kalaiyalahan, Akshaya"]
[Black "Terbe, Julianna"]
[Result "1/2-1/2"]
[ECO "A07"]
[WhiteElo "2208"]
[BlackElo "2285"]
[Annotator "ChessBase"]
[PlyCount "79"]
[EventDate "2021.11.27"]
[EventType "team-tourn"]
[EventCountry "ENG"]
[SourceTitle "playchess.com"]
[Source "ChessBase"]
[SourceQuality "1"]
[TimeControl "40/6000+30:3000+30"]

1. Nf3 {[%emt 0:00:04]} d5 {[%emt 0:00:06]} 2. g3 {[%emt 0:00:08]} Nf6 {[%emt 0:00:04]} 3. Bg2 {[%emt 0:00:08]} c6 {[%emt 0:00:04]} 4. O-O {[%emt 0:00:15]} Bg4 {[%emt 0:00:06]} 5. d3 {[%emt 0:00:28]} e6 {[%emt 0:00:16]} 6. Qe1 {[%emt 0:01:02]} Be7 {[%emt 0:00:10]} 7. e4 {[%emt 0:00:37]} O-O {[%emt 0:00:06]} 8. h3 {[%emt 0:01:33]} Bh5 {[%emt 0:00:11]} 9. e5 {[%emt 0:02:53]} Nfd7 {[%emt 0:01:04]} 10. Nh2 {[%emt 0:00:53]} Qb6 {[%emt 0:08:51]} 11. Kh1 {[%emt 0:02:16]} f6 {[%emt 0:09:10]} 12. exf6 {[%emt 0:07:04]} Bxf6 {[%emt 0:00:48]} 13. Nc3 {[%emt 0:09:44]} e5 {[%emt 0:06:42]} 14. f4 {[%emt 0:02:17]} exf4 {[%emt 0:03:39]} 15. Rxf4 {[%emt 0:00:32]} Re8 {[%emt 0:03:23]} 16. Qf2 {[%emt 0:10:23]} Be5 {[%emt 0:09:23]} 17. Qxb6 {[%emt 0:04:31]} axb6 {[%emt 0:00:11]} 18. Rh4 {[%emt 0:02:12]} Bg6 {[%emt 0:04:40]} 19. Nf1 {[%emt 0:02:14]} Na6 {[%emt 0:00:41]} 20. Bd2 {[%emt 0:03:36]} Bd6 {[%emt 0:08:32]} 21. a3 {[%emt 0:04:47]} b5 {[%emt 0:00:07]} 22. Nxd5 {[%emt 0:10:28]} cxd5 {[%emt 0:01:49]} 23. Bxd5+ {[%emt 0:00:07]} Bf7 {[%emt 0:02:05]} 24. Bxb7 {[%emt 0:00:12]} Ra7 {[%emt 0:00:28]} 25. Bc6 {[%emt 0:03:34]} Re2 {[%emt 0:12:40]} 26. Re4 {[%emt 0:15:52]} Rxe4 {[%emt 0:02:34]} 27. Bxe4 {[%emt 0:00:09]} Be5 {[%emt 0:07:29]} 28. Be3 {[%emt 0:08:53]} Rc7 {[%emt 0:00:16]} 29. d4 {[%emt 0:00:44]} Bd6 {[%emt 0:00:59]} 30. c3 {[%emt 0:00:41]} Nb6 {[%emt 0:00:53]} 31. Bf2 {[%emt 0:07:27]} Na4 {[%emt 0:04:00]} 32. Rb1 {[%emt 0:00:48]} Ba2 {[%emt 0:00:43]} 33. Ra1 {[%emt 0:02:10]} Bc4 {[%emt 0:01:42]} 34. Rb1 {[%emt 0:00:21]} Nxb2 {[%emt 0:10:58]} 35. Nd2 {[%emt 0:02:14]} Na4 {[%emt 0:00:43]} 36. Nxc4 {[%emt 0:00:31]} Nxc3 {[%emt 0:03:53]} 37. Nxd6 {[%emt 0:00:31]} Nxb1 {[%emt 0:00:11]} 38. Nxb5 {[%emt 0:01:08]} Rc1+ {[%emt 0:00:49]} 39. Kg2 {[%emt 0:00:04]} Rd1 {[%emt 0:03:39]} 40. Bc2 {[%emt 0:03:55]} 1/2-1/2

[Event "4NCL 2021-22"]
[Site "England"]
[Date "2022.03.26"]
[Round "5.16"]
[White "Toma, Katarzyna"]
[Black "Han, Yichen"]
[Result "1-0"]
[ECO "C45"]
[WhiteElo "2420"]
[BlackElo "2347"]
[Annotator "ChessBase"]
[PlyCount "83"]
[EventDate "2021.11.27"]
[EventType "team-tourn"]
[EventCountry "ENG"]
[SourceTitle "playchess.com"]
[Source "ChessBase"]
[SourceQuality "1"]
[TimeControl "40/6000+30:3000+30"]

1. e4 {[%emt 0:00:03]} e5 {[%emt 0:00:03]} 2. Nf3 {[%emt 0:00:07]} Nc6 {[%emt 0:00:06]} 3. d4 {[%emt 0:00:37]} exd4 {[%emt 0:00:08]} 4. Nxd4 {[%emt 0:00:05]} Bc5 {[%emt 0:00:24]} 5. Nb3 {[%emt 0:01:31]} Bb4+ {[%emt 0:00:20]} 6. Bd2 {[%emt 0:01:54]} a5 {[%emt 0:02:04]} 7. a4 {[%emt 0:19:39]} Nf6 {[%emt 0:04:52]} 8. Bd3 {[%emt 0:05:46]} O-O {[%emt 0:18:36]} 9. O-O {[%emt 0:03:54]} Ne5 {[%emt 0:04:56]} 10. f4 {[%emt 0:04:39]} Nxd3 {[%emt 0:00:24]} 11. cxd3 {[%emt 0:00:03]} c6 {[%emt 0:11:23]} 12. Bxb4 {[%emt 0:05:39]} axb4 {[%emt 0:00:10]} 13. N1d2 {[%emt 0:00:35]} d5 {[%emt 0:08:17]} 14. e5 {[%emt 0:01:33]} Ng4 {[%emt 0:01:16]} 15. Qe1 {[%emt 0:06:22]} Nh6 {[%emt 0:04:01]} 16. Nf3 {[%emt 0:03:04]} Bf5 {[%emt 0:09:28]} 17. d4 {[%emt 0:04:36]} Qe7 {[%emt 0:01:35]} 18. a5 {[%emt 0:03:07]} Bd3 {[%emt 0:08:40]} 19. Rf2 {[%emt 0:00:10]} Rfb8 {[%emt 0:03:23]} 20. Nc5 {[%emt 0:01:22]} Bc4 {[%emt 0:01:23]} 21. b3 {[%emt 0:01:21]} Bb5 {[%emt 0:00:10]} 22. Rfa2 {[%emt 0:00:50]} Ra7 {[%emt 0:03:27]} 23. Qxb4 {[%emt 0:03:40]} Rba8 {[%emt 0:00:08]} 24. Qd2 {[%emt 0:00:10]} Qc7 {[%emt 0:02:25]} 25. h3 {[%emt 0:04:30]} Nf5 {[%emt 0:03:31]} 26. Kf2 {[%emt 0:03:19]} Qd8 {[%emt 0:04:15]} 27. g3 {[%emt 0:08:47]} g6 {[%emt 0:05:14]} 28. Kg2 {[%emt 0:09:19]} Qe7 {[%emt 0:02:21]} 29. g4 {[%emt 0:00:16]} Ng7 {[%emt 0:00:19]} 30. Kg3 {[%emt 0:01:25]} Ne6 {[%emt 0:01:43]} 31. b4 {[%emt 0:01:59]} Bc4 {[%emt 0:00:48]} 32. Ra3 {[%emt 0:02:37]} b6 {[%emt 0:01:07]} 33. Nxe6 {[%emt 0:05:49]} fxe6 {[%emt 0:00:05]} 34. Qc3 {[%emt 0:00:15]} bxa5 {[%emt 0:02:12]} 35. Rxa5 {[%emt 0:00:53]} Rxa5 {[%emt 0:01:21]} 36. Rxa5 {[%emt 0:00:11]} Rxa5 {[%emt 0:03:14]} 37. bxa5 {[%emt 0:00:05]} Qb7 {[%emt 0:00:10]} 38. Qa3 {[%emt 0:00:23]} Qa7 {[%emt 0:03:18]} 39. Qd6 {[%emt 0:00:39]} h6 {[%emt 0:01:39]} 40. Qxe6+ {[%emt 0:00:38]} Kh7 {[%emt 0:00:05]} 41. Nh4 {[%emt 0:51:20]} Qxa5 {[%emt 0:04:35]} 42. Qf7+ {[%emt 0:00:00]} 1-0

[Event "4NCL 2021-22"]
[Site "England"]
[Date "2022.03.26"]
[Round "5.18"]
[White "Kirk, Ezra"]
[Black "Rendle, Thomas E"]
[Result "1/2-1/2"]
[ECO "E01"]
[WhiteElo "2438"]
[BlackElo "2365"]
[Annotator "ChessBase"]
[PlyCount "54"]
[EventDate "2021.11.27"]
[EventType "team-tourn"]
[EventCountry "ENG"]
[SourceTitle "playchess.com"]
[Source "ChessBase"]
[SourceQuality "1"]
[TimeControl "40/6000+30:3000+30"]

1. d4 {[%emt 0:00:03]} d5 {[%emt 0:00:14]} 2. Nf3 {[%emt 0:02:22]} Nf6 {[%emt 0:00:14]} 3. c4 {[%emt 0:04:24]} c6 {[%emt 0:01:08]} 4. Nc3 {[%emt 0:00:05]} e6 {[%emt 0:00:09]} 5. g3 {[%emt 0:00:26]} dxc4 {[%emt 0:01:12]} 6. a4 {[%emt 0:00:18]} Nbd7 {[%emt 0:03:37]} 7. Bg2 {[%emt 0:01:01]} Bb4 {[%emt 0:02:19]} 8. O-O {[%emt 0:00:45]} O-O {[%emt 0:00:09]} 9. Qc2 {[%emt 0:01:55]} a5 {[%emt 0:02:06]} 10. e4 {[%emt 0:10:06]} e5 {[%emt 0:01:40]} 11. Nxe5 {[%emt 0:23:58]} Nxe5 {[%emt 0:01:19]} 12. dxe5 {[%emt 0:00:06]} Ng4 {[%emt 0:00:41]} 13. f4 {[%emt 0:01:57]} Qd4+ {[%emt 0:06:15]} 14. Kh1 {[%emt 0:00:43]} Rd8 {[%emt 0:01:21]} 15. h3 {[%emt 0:10:14]} Ne3 {[%emt 0:04:46]} 16. Bxe3 {[%emt 0:00:43]} Qxe3 {[%emt 0:00:07]} 17. Rad1 {[%emt 0:03:00]} Bd7 {[%emt 0:10:03]} 18. Ne2 {[%emt 0:17:31]} b5 {[%emt 0:04:36]} 19. f5 {[%emt 0:19:43]} Be8 {[%emt 0:09:35]} 20. e6 {[%emt 0:03:16]} fxe6 {[%emt 0:02:09]} 21. Rf3 {[%emt 0:05:44]} Qh6 {[%emt 0:08:45]} 22. e5 {[%emt 0:01:41]} exf5 {[%emt 0:06:42]} 23. Nd4 {[%emt 0:00:57]} Bf7 {[%emt 0:11:42]} 24. Nxf5 {[%emt 0:00:48]} Qg5 {[%emt 0:00:25]} 25. Rf4 {[%emt 0:00:34]} Rxd1+ {[%emt 0:01:36]} 26. Qxd1 {[%emt 0:00:04]} Rd8 {[%emt 0:00:07]} 27. Qf1 {[%emt 0:00:30]} g6 {[%emt 0:19:28]} 1/2-1/2

[Event "4NCL 2021-22"]
[Site "England"]
[Date "2022.03.26"]
[Round "5.19"]
[White "Moreby, James"]
[Black "Pert, Richard G"]
[Result "1/2-1/2"]
[ECO "A13"]
[WhiteElo "2416"]
[BlackElo "2415"]
[Annotator "ChessBase"]
[PlyCount "28"]
[EventDate "2021.11.27"]
[EventType "team-tourn"]
[EventCountry "ENG"]
[SourceTitle "playchess.com"]
[Source "ChessBase"]
[SourceQuality "1"]
[TimeControl "40/6000+30:3000+30"]

1. c4 {[%emt 0:01:00]} e6 {[%emt 0:00:39]} 2. g3 {[%emt 0:00:38]} d5 {[%emt 0:00:28]} 3. Bg2 {[%emt 0:00:04]} dxc4 {[%emt 0:00:58]} 4. Na3 {[%emt 0:04:11]} Bxa3 {[%emt 0:03:36]} 5. bxa3 {[%emt 0:01:15]} Nf6 {[%emt 0:02:27]} 6. Bb2 {[%emt 0:03:41]} Nbd7 {[%emt 0:09:33]} 7. Qc2 {[%emt 0:09:10]} Rb8 {[%emt 0:08:06]} 8. Qxc4 {[%emt 0:04:46]} b5 {[%emt 0:02:24]} 9. Qc2 {[%emt 0:00:36]} c5 {[%emt 0:03:35]} 10. Nf3 {[%emt 0:00:50]} Bb7 {[%emt 0:01:08]} 11. O-O {[%emt 0:02:25]} O-O {[%emt 0:01:29]} 12. Rfc1 {[%emt 0:07:00]} h6 {[%emt 0:20:07]} 13. Ne5 {[%emt 0:10:08]} Bxg2 {[%emt 0:07:19]} 14. Nxd7 {[%emt 0:00:37]} Qxd7 {[%emt 0:04:41]} 1/2-1/2

[Event "4NCL 2021-22"]
[Site "England"]
[Date "2022.03.26"]
[Round "5.20"]
[White "Arkell, Keith C"]
[Black "Batchelor, Peter J"]
[Result "1/2-1/2"]
[ECO "E11"]
[WhiteElo "2380"]
[BlackElo "2366"]
[Annotator "ChessBase"]
[PlyCount "85"]
[EventDate "2021.11.27"]
[EventType "team-tourn"]
[EventCountry "ENG"]
[SourceTitle "playchess.com"]
[Source "ChessBase"]
[SourceQuality "1"]
[TimeControl "40/6000+30:3000+30"]

1. d4 {[%emt 0:02:26]} Nf6 {[%emt 0:00:08]} 2. Nf3 {[%emt 0:00:13]} e6 {[%emt 0:00:42]} 3. c4 {[%emt 0:00:05]} Bb4+ {[%emt 0:00:54]} 4. Bd2 {[%emt 0:00:05]} a5 {[%emt 0:04:07]} 5. g3 {[%emt 0:00:06]} Nc6 {[%emt 0:03:18]} 6. Bg2 {[%emt 0:01:52]} O-O {[%emt 0:00:51]} 7. Nc3 {[%emt 0:00:20]} Bxc3 {[%emt 0:06:33]} 8. Bxc3 {[%emt 0:00:13]} Ne4 {[%emt 0:00:15]} 9. Qc2 {[%emt 0:00:31]} Nxc3 {[%emt 0:01:13]} 10. Qxc3 {[%emt 0:00:05]} d6 {[%emt 0:05:42]} 11. d5 {[%emt 0:02:01]} Ne7 {[%emt 0:10:51]} 12. dxe6 {[%emt 0:00:14]} Bxe6 {[%emt 0:01:54]} 13. Nd4 {[%emt 0:00:38]} c6 {[%emt 0:03:42]} 14. Nxe6 {[%emt 0:00:11]} fxe6 {[%emt 0:00:04]} 15. Rd1 {[%emt 0:04:06]} Qc7 {[%emt 0:08:41]} 16. O-O {[%emt 0:00:40]} e5 {[%emt 0:03:21]} 17. e3 {[%emt 0:02:43]} Rf6 {[%emt 0:09:33]} 18. Rd2 {[%emt 0:02:51]} Nf5 {[%emt 0:05:53]} 19. Rfd1 {[%emt 0:01:01]} Raf8 {[%emt 0:05:02]} 20. a3 {[%emt 0:08:26]} Nh6 {[%emt 0:10:23]} 21. h3 {[%emt 0:03:16]} Nf7 {[%emt 0:01:53]} 22. b4 {[%emt 0:02:56]} axb4 {[%emt 0:01:45]} 23. axb4 {[%emt 0:01:29]} Qc8 {[%emt 0:04:07]} 24. Qc2 {[%emt 0:06:35]} Rh6 {[%emt 0:06:30]} 25. b5 {[%emt 0:06:37]} Rxh3 {[%emt 0:04:57]} 26. bxc6 {[%emt 0:00:12]} bxc6 {[%emt 0:00:07]} 27. Qe4 {[%emt 0:01:18]} Rh6 {[%emt 0:01:40]} 28. Qxc6 {[%emt 0:00:15]} Qg4 {[%emt 0:01:33]} 29. Ra1 {[%emt 0:09:48]} Rf6 {[%emt 0:05:47]} 30. Ra8 {[%emt 0:03:14]} g6 {[%emt 0:01:10]} 31. Bd5 {[%emt 0:01:58]} Rxa8 {[%emt 0:00:54]} 32. Qxa8+ {[%emt 0:00:09]} Kg7 {[%emt 0:00:03]} 33. Qc6 {[%emt 0:22:26]} Ng5 {[%emt 0:00:45]} 34. Bg2 {[%emt 0:04:30]} Qf5 {[%emt 0:01:17]} 35. e4 {[%emt 0:03:40]} Qe6 {[%emt 0:00:37]} 36. Rb2 {[%emt 0:02:37]} Qg4 {[%emt 0:00:45]} 37. Rd2 {[%emt 0:00:55]} Nf7 {[%emt 0:01:14]} 38. c5 {[%emt 0:06:18]} dxc5 {[%emt 0:00:04]} 39. Qxc5 {[%emt 0:00:12]} h5 {[%emt 0:00:34]} 40. Qe3 {[%emt 0:04:58]} h4 {[%emt 0:00:32]} 41. gxh4 {[%emt 0:52:06]} Qxh4 {[%emt 0:02:00]} 42. Qg3 {[%emt 0:00:00]} Qxg3 {[%emt 0:09:27]} 43. fxg3 {[%emt 0:00:00]} 1/2-1/2

[Event "4NCL 2021-22"]
[Site "England"]
[Date "2022.03.26"]
[Round "5.21"]
[White "Holland, James P"]
[Black "Eggleston, David J"]
[Result "1/2-1/2"]
[ECO "C00"]
[WhiteElo "2224"]
[BlackElo "2343"]
[Annotator "ChessBase"]
[PlyCount "47"]
[EventDate "2021.11.27"]
[EventType "team-tourn"]
[EventCountry "ENG"]
[SourceTitle "playchess.com"]
[Source "ChessBase"]
[SourceQuality "1"]
[TimeControl "40/6000+30:3000+30"]

1. e4 {[%emt 0:02:14]} e6 {[%emt 0:00:02]} 2. f4 {[%emt 0:06:04]} d5 {[%emt 0:00:24]} 3. Nc3 {[%emt 0:00:15]} dxe4 {[%emt 0:03:33]} 4. Nxe4 {[%emt 0:00:04]} Nf6 {[%emt 0:00:46]} 5. Nxf6+ {[%emt 0:00:16]} Qxf6 {[%emt 0:00:07]} 6. d4 {[%emt 0:00:03]} Bd6 {[%emt 0:00:52]} 7. g3 {[%emt 0:07:42]} c5 {[%emt 0:00:27]} 8. Nf3 {[%emt 0:01:09]} Nc6 {[%emt 0:00:20]} 9. Be3 {[%emt 0:09:25]} cxd4 {[%emt 0:02:41]} 10. Nxd4 {[%emt 0:06:09]} e5 {[%emt 0:05:05]} 11. Nb5 {[%emt 0:02:41]} Bb8 {[%emt 0:00:27]} 12. Bc5 {[%emt 0:10:37]} exf4 {[%emt 0:01:54]} 13. Qe2+ {[%emt 0:07:47]} Qe5 {[%emt 0:01:14]} 14. gxf4 {[%emt 0:04:32]} Qxe2+ {[%emt 0:03:54]} 15. Bxe2 {[%emt 0:01:34]} Bxf4 {[%emt 0:26:29]} 16. O-O {[%emt 0:13:27]} Be5 {[%emt 0:00:15]} 17. Bc4 {[%emt 0:08:39]} Be6 {[%emt 0:02:00]} 18. Bxe6 {[%emt 0:00:12]} fxe6 {[%emt 0:00:05]} 19. Rae1 {[%emt 0:00:05]} a6 {[%emt 0:15:13]} 20. Nd6+ {[%emt 0:09:34]} Bxd6 {[%emt 0:01:10]} 21. Rxe6+ {[%emt 0:00:12]} Be7 {[%emt 0:00:14]} 22. Bxe7 {[%emt 0:00:21]} Nxe7 {[%emt 0:09:11]} 23. Rfe1 {[%emt 0:05:19]} O-O-O {[%emt 0:00:19]} 24. Rxe7 {[%emt 0:00:03]} 1/2-1/2